[Event "Late-Titled-Tuesday-Blitz-October-17-2023"]
[Site "Chess.com"]
[Date "2023.10.17"]
[Round "2"]
[White "koncheto"]
[Black "gmcorrales"]
[Result "1-0"]
[WhiteElo "2555"]
[BlackElo "2847"]
[TimeControl "180+1"]
[EndTime "14:16:38 PDT"]
[Termination "koncheto won by checkmate"]

1. e4 {[%clk 0:02:59.4]} 1... c5 {[%clk 0:02:59.3]} 2. Nf3 {[%clk 0:02:59.6]}
2... Nc6 {[%clk 0:02:59.3]} 3. d4 {[%clk 0:03:00.2]} 3... cxd4 {[%clk
0:03:00.2]} 4. Nxd4 {[%clk 0:03:00.6]} 4... Nf6 {[%clk 0:03:00.7]} 5. Nc3 {[%clk
0:03:00.9]} 5... d6 {[%clk 0:03:00.7]} 6. Bg5 {[%clk 0:03:00.8]} 6... Bd7 {[%clk
0:02:59.4]} 7. Qd2 {[%clk 0:02:58.4]} 7... a6 {[%clk 0:02:58.4]} 8. O-O-O {[%clk
0:02:45.9]} 8... e6 {[%clk 0:02:57.7]} 9. f4 {[%clk 0:02:38.6]} 9... b5 {[%clk
0:02:57.8]} 10. a3 {[%clk 0:02:37.4]} 10... h6 {[%clk 0:02:53.8]} 11. Bxf6
{[%clk 0:02:32]} 11... Qxf6 {[%clk 0:02:50.3]} 12. e5 {[%clk 0:02:16.7]} 12...
dxe5 {[%clk 0:02:24.2]} 13. Ndxb5 {[%clk 0:02:14.5]} 13... O-O-O {[%clk
0:02:23.3]} 14. Nd6+ {[%clk 0:01:55.6]} 14... Kc7 {[%clk 0:02:05.1]} 15. fxe5
{[%clk 0:01:36.2]} 15... Nxe5 {[%clk 0:02:04]} 16. Nce4 {[%clk 0:01:28.6]} 16...
Nd3+ {[%clk 0:01:26.5]} 17. Bxd3 {[%clk 0:01:13.7]} 17... Qe5 {[%clk 0:01:26.5]}
18. Nc4 {[%clk 0:01:11.7]} 18... Qd5 {[%clk 0:01:25.3]} 19. Qf4+ {[%clk
0:00:54.1]} 19... e5 {[%clk 0:01:23.5]} 20. Nxe5 {[%clk 0:00:46.8]} 20... g5
{[%clk 0:01:22.4]} 21. Qg3 {[%clk 0:00:44.6]} 21... Qa2 {[%clk 0:01:16.1]} 22.
Nxd7+ {[%clk 0:00:39.9]} 22... Kb7 {[%clk 0:01:12.6]} 23. Bxa6+ {[%clk
0:00:19.6]} 23... Kxa6 {[%clk 0:01:07.7]} 24. Nec5+ {[%clk 0:00:16.7]} 24... Kb5
{[%clk 0:01:05]} 25. a4+ {[%clk 0:00:08.4]} 25... Ka5 {[%clk 0:00:36.3]} 26.
Qc3# {[%clk 0:00:06.7]} 1-0

[Event "Late-Titled-Tuesday-Blitz-October-17-2023"]
[Site "Chess.com"]
[Date "2023.10.17"]
[Round "2"]
[White "vidavi"]
[Black "C_K_G"]
[Result "1-0"]
[WhiteElo "2397"]
[BlackElo "1894"]
[TimeControl "180+1"]
[EndTime "14:16:42 PDT"]
[Termination "vidavi won on time"]

1. e4 {[%clk 0:03:00.9]} 1... c5 {[%clk 0:02:59.8]} 2. Nf3 {[%clk 0:03:01]} 2...
d6 {[%clk 0:02:59.5]} 3. d4 {[%clk 0:03:00.2]} 3... cxd4 {[%clk 0:02:59]} 4.
Nxd4 {[%clk 0:03:01.1]} 4... Nf6 {[%clk 0:02:59.4]} 5. Nc3 {[%clk 0:03:01.2]}
5... a6 {[%clk 0:02:59.9]} 6. Bg5 {[%clk 0:02:59.1]} 6... e5 {[%clk 0:02:55.7]}
7. Nf5 {[%clk 0:02:52.5]} 7... Bxf5 {[%clk 0:02:54.2]} 8. exf5 {[%clk
0:02:53.4]} 8... Nbd7 {[%clk 0:02:51.4]} 9. Bc4 {[%clk 0:02:51.7]} 9... Be7
{[%clk 0:02:48.7]} 10. O-O {[%clk 0:02:45.7]} 10... O-O {[%clk 0:02:42.4]} 11.
a4 {[%clk 0:02:42.3]} 11... d5 {[%clk 0:02:04]} 12. Bxf6 {[%clk 0:02:35.3]}
12... dxc4 {[%clk 0:01:59.5]} 13. Bxe7 {[%clk 0:02:34.3]} 13... Qxe7 {[%clk
0:01:57.5]} 14. Qd5 {[%clk 0:02:23.3]} 14... Nb6 {[%clk 0:01:49]} 15. Qe4 {[%clk
0:02:22.9]} 15... Rfd8 {[%clk 0:01:36.4]} 16. Rfe1 {[%clk 0:02:17.7]} 16... Qb4
{[%clk 0:01:23]} 17. Qxb7 {[%clk 0:01:36.7]} 17... Qxb2 {[%clk 0:01:06.3]} 18.
Ne4 {[%clk 0:01:32.9]} 18... Nxa4 {[%clk 0:00:55.4]} 19. Qxb2 {[%clk 0:01:30.4]}
19... Nxb2 {[%clk 0:00:55.1]} 20. Reb1 {[%clk 0:01:28.6]} 20... Rdb8 {[%clk
0:00:43]} 21. Nc3 {[%clk 0:01:18.4]} 21... Rb6 {[%clk 0:00:20.5]} 22. Kf1 {[%clk
0:01:13.6]} 22... Rab8 {[%clk 0:00:19.6]} 23. Ke2 {[%clk 0:01:12.6]} 23... h6
{[%clk 0:00:14.1]} 24. Re1 {[%clk 0:01:00.4]} 24... Rc6 {[%clk 0:00:05.1]} 25.
Ra2 {[%clk 0:00:58.6]} 25... h5 {[%clk 0:00:02.8]} 26. g3 {[%clk 0:00:55.6]}
26... g6 {[%clk 0:00:01.9]} 27. Rb1 {[%clk 0:00:49.9]} 1-0

[Event "Late-Titled-Tuesday-Blitz-October-17-2023"]
[Site "Chess.com"]
[Date "2023.10.17"]
[Round "2"]
[White "Deeper44"]
[Black "GM_dmitrij"]
[Result "0-1"]
[WhiteElo "2634"]
[BlackElo "3045"]
[TimeControl "180+1"]
[EndTime "14:16:46 PDT"]
[Termination "GM_dmitrij won by resignation"]

1. d4 {[%clk 0:02:59.8]} 1... Nf6 {[%clk 0:02:55.9]} 2. c4 {[%clk 0:02:58.6]}
2... e6 {[%clk 0:02:55.7]} 3. g3 {[%clk 0:02:55.6]} 3... c5 {[%clk 0:02:53]} 4.
d5 {[%clk 0:02:55.6]} 4... exd5 {[%clk 0:02:53.9]} 5. cxd5 {[%clk 0:02:56.5]}
5... d6 {[%clk 0:02:54.1]} 6. Nc3 {[%clk 0:02:57.1]} 6... g6 {[%clk 0:02:54.2]}
7. Bg2 {[%clk 0:02:57.7]} 7... Bg7 {[%clk 0:02:54.3]} 8. Nf3 {[%clk 0:02:58.3]}
8... O-O {[%clk 0:02:54.4]} 9. O-O {[%clk 0:02:59.2]} 9... Re8 {[%clk
0:02:51.7]} 10. Nd2 {[%clk 0:02:59.5]} 10... a6 {[%clk 0:02:50.1]} 11. a4 {[%clk
0:02:58]} 11... Nbd7 {[%clk 0:02:50.3]} 12. h3 {[%clk 0:02:57.5]} 12... Nh5
{[%clk 0:02:48]} 13. Nde4 {[%clk 0:02:51]} 13... Ne5 {[%clk 0:02:36.9]} 14. f4
{[%clk 0:02:45.5]} 14... Nc4 {[%clk 0:02:35.7]} 15. g4 {[%clk 0:02:29.1]} 15...
Nf6 {[%clk 0:02:34.1]} 16. Qd3 {[%clk 0:02:16.6]} 16... Nxe4 {[%clk 0:02:29.1]}
17. Nxe4 {[%clk 0:02:07.4]} 17... Nxb2 {[%clk 0:02:18.9]} 18. Bxb2 {[%clk
0:01:38.1]} 18... Bxb2 {[%clk 0:02:17.8]} 19. Rab1 {[%clk 0:01:38.7]} 19... Bg7
{[%clk 0:02:11.8]} 20. f5 {[%clk 0:01:38.2]} 20... Be5 {[%clk 0:02:10]} 21. Qf3
{[%clk 0:01:26.7]} 21... gxf5 {[%clk 0:02:00.6]} 22. gxf5 {[%clk 0:01:26.6]}
22... Kh8 {[%clk 0:02:00.7]} 23. Qh5 {[%clk 0:01:18.5]} 23... f6 {[%clk
0:01:59.9]} 24. Kh1 {[%clk 0:01:01.5]} 24... Qe7 {[%clk 0:01:59.3]} 25. Bf3
{[%clk 0:00:59.1]} 25... Rg8 {[%clk 0:01:41.8]} 26. Rg1 {[%clk 0:00:56.1]} 26...
Rxg1+ {[%clk 0:01:39.6]} 27. Kxg1 {[%clk 0:00:47.4]} 27... Rb8 {[%clk
0:01:33.1]} 28. a5 {[%clk 0:00:47]} 28... Bd7 {[%clk 0:01:32.2]} 29. Kh1 {[%clk
0:00:42.5]} 29... c4 {[%clk 0:01:20.8]} 30. Rc1 {[%clk 0:00:33.8]} 30... Rc8
{[%clk 0:01:19.9]} 31. Qg4 {[%clk 0:00:13.4]} 31... c3 {[%clk 0:01:16.1]} 32. h4
{[%clk 0:00:12.1]} 32... Qg7 {[%clk 0:01:12.8]} 33. Qxg7+ {[%clk 0:00:10.8]}
33... Kxg7 {[%clk 0:01:13.7]} 34. Kg2 {[%clk 0:00:10.8]} 34... c2 {[%clk
0:01:10.8]} 35. Kf2 {[%clk 0:00:08.5]} 35... Bb2 {[%clk 0:01:10.5]} 36. Nxd6
{[%clk 0:00:08.5]} 36... Bxc1 {[%clk 0:01:08]} 0-1

[Event "Late-Titled-Tuesday-Blitz-October-17-2023"]
[Site "Chess.com"]
[Date "2023.10.17"]
[Round "2"]
[White "pedromartinez91"]
[Black "GadimbayliA"]
[Result "0-1"]
[WhiteElo "2527"]
[BlackElo "2836"]
[TimeControl "180+1"]
[EndTime "14:16:47 PDT"]
[Termination "GadimbayliA won by resignation"]

1. d4 {[%clk 0:03:00.9]} 1... d5 {[%clk 0:02:59.1]} 2. c4 {[%clk 0:03:01]} 2...
e5 {[%clk 0:02:58.9]} 3. dxe5 {[%clk 0:03:00.4]} 3... d4 {[%clk 0:02:59.8]} 4.
Nf3 {[%clk 0:02:59.5]} 4... Nc6 {[%clk 0:02:59.9]} 5. g3 {[%clk 0:02:58]} 5...
Nge7 {[%clk 0:02:58.5]} 6. Bg2 {[%clk 0:02:58]} 6... Ng6 {[%clk 0:02:59.1]} 7.
Bg5 {[%clk 0:02:48.2]} 7... Qd7 {[%clk 0:02:59.1]} 8. e6 {[%clk 0:02:38.6]} 8...
fxe6 {[%clk 0:03:00]} 9. O-O {[%clk 0:02:38.2]} 9... e5 {[%clk 0:03:00.3]} 10.
a3 {[%clk 0:02:29.8]} 10... Qf7 {[%clk 0:03:00.1]} 11. Qb3 {[%clk 0:02:11.2]}
11... Bd6 {[%clk 0:02:39]} 12. Nbd2 {[%clk 0:02:10.1]} 12... h6 {[%clk
0:02:38.9]} 13. Bh4 {[%clk 0:02:10.4]} 13... O-O {[%clk 0:02:31.3]} 14. Ne4
{[%clk 0:02:06.2]} 14... Bf5 {[%clk 0:02:14.6]} 15. Qd3 {[%clk 0:01:51.2]} 15...
Nh8 {[%clk 0:01:49.9]} 16. Rac1 {[%clk 0:01:31.7]} 16... g5 {[%clk 0:01:35.3]}
17. Bxg5 {[%clk 0:01:31.9]} 17... Qg6 {[%clk 0:01:35.6]} 18. Nh4 {[%clk
0:00:53.2]} 18... Bxe4 {[%clk 0:01:35.7]} 19. Bxe4 {[%clk 0:00:42.2]} 19... Qxg5
{[%clk 0:01:34.1]} 20. c5 {[%clk 0:00:42.9]} 20... Be7 {[%clk 0:01:31]} 21. Qb3+
{[%clk 0:00:43.1]} 21... Nf7 {[%clk 0:01:16.9]} 22. Qxb7 {[%clk 0:00:43.1]}
22... Na5 {[%clk 0:01:17]} 23. Qxc7 {[%clk 0:00:37.9]} 23... Nb3 {[%clk
0:01:15.2]} 24. Nf5 {[%clk 0:00:24.3]} 24... Nxc1 {[%clk 0:01:06.3]} 25. Nxe7+
{[%clk 0:00:24.2]} 25... Kh8 {[%clk 0:01:05.1]} 26. h4 {[%clk 0:00:15.3]} 26...
Nxe2+ {[%clk 0:01:04]} 27. Kh2 {[%clk 0:00:15.4]} 27... Qf6 {[%clk 0:01:01.4]}
28. Ng6+ {[%clk 0:00:15.2]} 28... Kg7 {[%clk 0:01:00.4]} 29. Nxf8 {[%clk
0:00:15.6]} 29... Rxf8 {[%clk 0:01:01.3]} 30. c6 {[%clk 0:00:11.9]} 30... Nxg3
{[%clk 0:00:59]} 31. Rg1 {[%clk 0:00:09.8]} 31... Qxh4+ {[%clk 0:00:57.3]} 32.
Kg2 {[%clk 0:00:09.4]} 32... Nxe4 {[%clk 0:00:57.9]} 33. Kf3+ {[%clk 0:00:07.5]}
33... Ng5+ {[%clk 0:00:57.9]} 34. Ke2 {[%clk 0:00:07.7]} 34... Qe4+ {[%clk
0:00:58.2]} 0-1

[Event "Late-Titled-Tuesday-Blitz-October-17-2023"]
[Site "Chess.com"]
[Date "2023.10.17"]
[Round "2"]
[White "ferdipy"]
[Black "shrek4life02"]
[Result "1-0"]
[WhiteElo "2380"]
[BlackElo "2691"]
[TimeControl "180+1"]
[EndTime "14:16:52 PDT"]
[Termination "ferdipy won by resignation"]

1. e4 {[%clk 0:03:00.9]} 1... e6 {[%clk 0:03:00.1]} 2. d4 {[%clk 0:03:01.1]}
2... d5 {[%clk 0:03:01]} 3. e5 {[%clk 0:03:02]} 3... c5 {[%clk 0:03:00.9]} 4. c3
{[%clk 0:03:02.9]} 4... Nc6 {[%clk 0:03:01.2]} 5. Nf3 {[%clk 0:03:03.8]} 5... f6
{[%clk 0:03:01.5]} 6. exf6 {[%clk 0:03:02.8]} 6... Nxf6 {[%clk 0:03:02.1]} 7.
Bd3 {[%clk 0:03:02.7]} 7... Bd6 {[%clk 0:03:02.1]} 8. Bg5 {[%clk 0:03:02.1]}
8... O-O {[%clk 0:03:02.4]} 9. O-O {[%clk 0:03:01.9]} 9... e5 {[%clk 0:02:59.8]}
10. dxe5 {[%clk 0:03:01.7]} 10... Nxe5 {[%clk 0:03:00.7]} 11. Nxe5 {[%clk
0:02:56.1]} 11... Bxe5 {[%clk 0:03:01.6]} 12. g3 {[%clk 0:02:34.3]} 12... Bh3
{[%clk 0:03:00.4]} 13. Re1 {[%clk 0:02:33.4]} 13... Qc7 {[%clk 0:02:49.8]} 14.
Bxf6 {[%clk 0:02:20.4]} 14... gxf6 {[%clk 0:02:47]} 15. Qh5 {[%clk 0:02:08.9]}
15... Qd7 {[%clk 0:02:47]} 16. Nd2 {[%clk 0:02:04]} 16... Rf7 {[%clk 0:02:44.1]}
17. Nf3 {[%clk 0:02:01.7]} 17... Bc7 {[%clk 0:02:34.6]} 18. Nh4 {[%clk
0:01:59.6]} 18... Bg4 {[%clk 0:02:33.9]} 19. Qh6 {[%clk 0:01:58.4]} 19... c4
{[%clk 0:01:54.4]} 20. Bf1 {[%clk 0:01:57.7]} 20... Bb6 {[%clk 0:01:52]} 21. Bg2
{[%clk 0:01:49.7]} 21... d4 {[%clk 0:01:50.1]} 22. cxd4 {[%clk 0:01:40.8]} 22...
Qxd4 {[%clk 0:01:51]} 23. Rf1 {[%clk 0:01:17]} 23... Re8 {[%clk 0:01:44.5]} 24.
Nf3 {[%clk 0:01:10.5]} 24... Qxb2 {[%clk 0:01:40.4]} 25. Qf4 {[%clk 0:01:09.6]}
25... Bxf3 {[%clk 0:01:31.2]} 26. Bxf3 {[%clk 0:01:08.1]} 26... Qd4 {[%clk
0:01:32.1]} 27. Qxd4 {[%clk 0:01:02.8]} 27... Bxd4 {[%clk 0:01:33]} 28. Rac1
{[%clk 0:01:00]} 28... b5 {[%clk 0:01:21.7]} 29. Bh5 {[%clk 0:00:57.8]} 29...
Re2 {[%clk 0:01:21.3]} 30. Bxe2 {[%clk 0:00:57.5]} 30... Rc7 {[%clk 0:00:53.3]}
31. Rfd1 {[%clk 0:00:56.3]} 31... Bb6 {[%clk 0:00:53.7]} 32. a4 {[%clk
0:00:53.7]} 32... a6 {[%clk 0:00:53.9]} 33. axb5 {[%clk 0:00:54]} 33... axb5
{[%clk 0:00:54.8]} 34. Rb1 {[%clk 0:00:54.6]} 34... Rc5 {[%clk 0:00:55.7]} 35.
Rxb5 {[%clk 0:00:53.8]} 1-0

[Event "Late-Titled-Tuesday-Blitz-October-17-2023"]
[Site "Chess.com"]
[Date "2023.10.17"]
[Round "2"]
[White "Tomytoteph"]
[Black "tptagain"]
[Result "0-1"]
[WhiteElo "2568"]
[BlackElo "2905"]
[TimeControl "180+1"]
[EndTime "14:17:01 PDT"]
[Termination "tptagain won by resignation"]

1. e4 {[%clk 0:03:00.9]} 1... c5 {[%clk 0:02:59.9]} 2. Nf3 {[%clk 0:03:00.6]}
2... Nc6 {[%clk 0:03:00.6]} 3. Bb5 {[%clk 0:03:00]} 3... e6 {[%clk 0:03:00.7]}
4. O-O {[%clk 0:02:59.9]} 4... Nge7 {[%clk 0:03:00.6]} 5. Re1 {[%clk 0:03:00.1]}
5... a6 {[%clk 0:02:52.8]} 6. Bf1 {[%clk 0:02:59.4]} 6... b6 {[%clk 0:02:53.3]}
7. c3 {[%clk 0:02:59]} 7... d5 {[%clk 0:02:53.1]} 8. exd5 {[%clk 0:02:58.7]}
8... Nxd5 {[%clk 0:02:53.5]} 9. d4 {[%clk 0:02:58.8]} 9... cxd4 {[%clk
0:02:54.2]} 10. Nxd4 {[%clk 0:02:58.5]} 10... Bb7 {[%clk 0:02:54.8]} 11. Nf3
{[%clk 0:02:50]} 11... Be7 {[%clk 0:02:51.4]} 12. Nbd2 {[%clk 0:02:49.7]} 12...
O-O {[%clk 0:02:48.3]} 13. Ne4 {[%clk 0:02:36.9]} 13... Qc7 {[%clk 0:02:44.2]}
14. Bg5 {[%clk 0:02:35.8]} 14... Bxg5 {[%clk 0:02:42.8]} 15. Nexg5 {[%clk
0:02:32.1]} 15... h6 {[%clk 0:02:40.9]} 16. Ne4 {[%clk 0:02:31.4]} 16... Rad8
{[%clk 0:02:40.7]} 17. Qc2 {[%clk 0:02:30.3]} 17... f5 {[%clk 0:02:36.1]} 18.
Ng3 {[%clk 0:02:27.7]} 18... Nf4 {[%clk 0:02:36.3]} 19. Qb3 {[%clk 0:01:59.3]}
19... Na5 {[%clk 0:02:25.8]} 20. Qc2 {[%clk 0:01:50]} 20... Bxf3 {[%clk
0:02:23.5]} 21. gxf3 {[%clk 0:01:50.9]} 21... Nc4 {[%clk 0:02:15.2]} 22. Rad1
{[%clk 0:01:47.1]} 22... Ne5 {[%clk 0:02:09.1]} 23. Bg2 {[%clk 0:01:24.3]} 23...
Neg6 {[%clk 0:02:00.4]} 24. Qb3 {[%clk 0:01:16.8]} 24... Kh7 {[%clk 0:01:57]}
25. Ne2 {[%clk 0:01:05.8]} 25... Nxg2 {[%clk 0:01:55]} 26. Kxg2 {[%clk
0:01:03.6]} 26... Nh4+ {[%clk 0:01:55.5]} 27. Kh1 {[%clk 0:00:55.7]} 27... Nxf3
{[%clk 0:01:54.9]} 28. Ng3 {[%clk 0:00:56.4]} 28... Nxe1 {[%clk 0:01:55]} 29.
Rxe1 {[%clk 0:00:57.3]} 29... e5 {[%clk 0:01:53]} 30. Qe6 {[%clk 0:00:51.3]}
30... Rde8 {[%clk 0:01:42.2]} 31. Qd5 {[%clk 0:00:48.7]} 31... e4 {[%clk
0:01:32.2]} 32. Re2 {[%clk 0:00:40.8]} 32... Qe5 {[%clk 0:01:31]} 33. Qb7 {[%clk
0:00:36]} 33... Rd8 {[%clk 0:01:25.3]} 34. Kg2 {[%clk 0:00:27.7]} 34... Rd6
{[%clk 0:01:17.8]} 35. Qxa6 {[%clk 0:00:27.3]} 35... f4 {[%clk 0:01:04.8]} 36.
Rxe4 {[%clk 0:00:26.8]} 36... Qd5 {[%clk 0:01:04.2]} 37. c4 {[%clk 0:00:23.7]}
37... Qc6 {[%clk 0:01:01.4]} 38. c5 {[%clk 0:00:10.8]} 38... fxg3 {[%clk
0:00:58]} 0-1

[Event "Late-Titled-Tuesday-Blitz-October-17-2023"]
[Site "Chess.com"]
[Date "2023.10.17"]
[Round "2"]
[White "angryspacevoid"]
[Black "johnmez"]
[Result "0-1"]
[WhiteElo "2458"]
[BlackElo "2323"]
[TimeControl "180+1"]
[EndTime "14:17:11 PDT"]
[Termination "johnmez won by checkmate"]

1. d4 {[%clk 0:02:55.2]} 1... Nf6 {[%clk 0:02:58.8]} 2. Nc3 {[%clk 0:02:52.8]}
2... e6 {[%clk 0:02:57.9]} 3. e4 {[%clk 0:02:50.5]} 3... d5 {[%clk 0:02:58.2]}
4. e5 {[%clk 0:02:49.7]} 4... Nfd7 {[%clk 0:02:58.7]} 5. f4 {[%clk 0:02:50.1]}
5... c5 {[%clk 0:02:58.8]} 6. Nf3 {[%clk 0:02:50.8]} 6... a6 {[%clk 0:02:59]} 7.
Be3 {[%clk 0:02:50.9]} 7... Nc6 {[%clk 0:02:58.7]} 8. Qd2 {[%clk 0:02:51.3]}
8... b5 {[%clk 0:02:50.6]} 9. a3 {[%clk 0:02:50]} 9... Be7 {[%clk 0:02:43.8]}
10. Be2 {[%clk 0:02:47.7]} 10... Qb6 {[%clk 0:02:27.8]} 11. Nd1 {[%clk
0:02:35.9]} 11... a5 {[%clk 0:02:22.2]} 12. O-O {[%clk 0:02:33.9]} 12... Ba6
{[%clk 0:02:20.3]} 13. c3 {[%clk 0:02:31.8]} 13... O-O {[%clk 0:02:15.8]} 14.
Nf2 {[%clk 0:02:28.2]} 14... b4 {[%clk 0:02:09.8]} 15. axb4 {[%clk 0:02:27.7]}
15... cxb4 {[%clk 0:02:02.7]} 16. g4 {[%clk 0:02:25]} 16... Bxe2 {[%clk
0:01:53.7]} 17. Qxe2 {[%clk 0:02:24.2]} 17... a4 {[%clk 0:01:53.7]} 18. f5
{[%clk 0:02:19.2]} 18... Qa6 {[%clk 0:01:40.8]} 19. Qd2 {[%clk 0:02:15.2]} 19...
Qb5 {[%clk 0:01:30.9]} 20. h4 {[%clk 0:02:08.3]} 20... Nb6 {[%clk 0:01:28.8]}
21. Bg5 {[%clk 0:02:05.4]} 21... Nc4 {[%clk 0:01:24.6]} 22. Qc1 {[%clk
0:02:02.4]} 22... f6 {[%clk 0:01:05.1]} 23. exf6 {[%clk 0:02:01.5]} 23... Bxf6
{[%clk 0:01:02]} 24. Bxf6 {[%clk 0:02:01.4]} 24... Rxf6 {[%clk 0:01:00.9]} 25.
Nd3 {[%clk 0:01:44.3]} 25... exf5 {[%clk 0:00:56.8]} 26. g5 {[%clk 0:01:42.7]}
26... Rf7 {[%clk 0:00:46.6]} 27. Qf4 {[%clk 0:01:39.4]} 27... Re8 {[%clk
0:00:41.5]} 28. Rfe1 {[%clk 0:01:38.5]} 28... Re4 {[%clk 0:00:40.5]} 29. Qh2
{[%clk 0:01:31.1]} 29... Ne3 {[%clk 0:00:38.1]} 30. Nde5 {[%clk 0:01:26.2]}
30... Rf8 {[%clk 0:00:34.1]} 31. Re2 {[%clk 0:01:20.8]} 31... Ng4 {[%clk
0:00:30.3]} 32. Nxg4 {[%clk 0:01:15]} 32... Rxe2 {[%clk 0:00:28.7]} 33. Nf2
{[%clk 0:01:14]} 33... bxc3 {[%clk 0:00:25.2]} 34. bxc3 {[%clk 0:01:13.5]} 34...
Qb2 {[%clk 0:00:22.7]} 35. Rf1 {[%clk 0:01:12]} 35... Qxc3 {[%clk 0:00:21.4]}
36. Qd6 {[%clk 0:01:12.1]} 36... Qxf3 {[%clk 0:00:15.5]} 37. Qxc6 {[%clk
0:00:58.5]} 37... Qg3+ {[%clk 0:00:13.7]} 38. Kh1 {[%clk 0:00:59.1]} 38... Rxf2
{[%clk 0:00:13.2]} 39. Qxd5+ {[%clk 0:00:59.6]} 39... Kh8 {[%clk 0:00:13.6]} 40.
Rxf2 {[%clk 0:00:56.7]} 40... Qxf2 {[%clk 0:00:14.2]} 41. Qc5 {[%clk 0:00:53.5]}
41... Qxh4+ {[%clk 0:00:13.6]} 42. Kg1 {[%clk 0:00:53.4]} 42... Qxg5+ {[%clk
0:00:13.5]} 43. Kf2 {[%clk 0:00:54.3]} 43... Re8 {[%clk 0:00:13]} 44. Qc6 {[%clk
0:00:53.4]} 44... Qe3+ {[%clk 0:00:12.9]} 45. Kf1 {[%clk 0:00:54.1]} 45... f4
{[%clk 0:00:13.1]} 46. d5 {[%clk 0:00:53]} 46... f3 {[%clk 0:00:12.8]} 47. Qc2
{[%clk 0:00:49.6]} 47... Qe1# {[%clk 0:00:11.8]} 0-1

[Event "Late-Titled-Tuesday-Blitz-October-17-2023"]
[Site "Chess.com"]
[Date "2023.10.17"]
[Round "2"]
[White "Iball95"]
[Black "sjoerd893"]
[Result "1-0"]
[WhiteElo "2845"]
[BlackElo "2527"]
[TimeControl "180+1"]
[EndTime "14:17:12 PDT"]
[Termination "Iball95 won on time"]

1. e4 {[%clk 0:03:00]} 1... c5 {[%clk 0:02:59.7]} 2. Nf3 {[%clk 0:03:00.6]} 2...
Nc6 {[%clk 0:02:59.6]} 3. Nc3 {[%clk 0:03:01.1]} 3... g6 {[%clk 0:02:58]} 4. d4
{[%clk 0:03:01.5]} 4... cxd4 {[%clk 0:02:58.9]} 5. Nxd4 {[%clk 0:03:02.1]} 5...
Bg7 {[%clk 0:02:59.5]} 6. Nxc6 {[%clk 0:03:03]} 6... bxc6 {[%clk 0:02:54.5]} 7.
Bc4 {[%clk 0:03:03.5]} 7... e6 {[%clk 0:02:42.5]} 8. O-O {[%clk 0:03:03]} 8...
Ne7 {[%clk 0:02:40.9]} 9. Qd6 {[%clk 0:03:03.4]} 9... O-O {[%clk 0:02:38]} 10.
Bg5 {[%clk 0:03:03.2]} 10... Nf5 {[%clk 0:01:30.7]} 11. Qd2 {[%clk 0:03:02.9]}
11... f6 {[%clk 0:01:20.5]} 12. Bf4 {[%clk 0:02:49.2]} 12... Ne7 {[%clk
0:01:17.7]} 13. Qd6 {[%clk 0:02:41.4]} 13... Kh8 {[%clk 0:01:08.5]} 14. Rfd1
{[%clk 0:02:38.5]} 14... Qe8 {[%clk 0:01:05.7]} 15. Na4 {[%clk 0:02:23.7]} 15...
f5 {[%clk 0:00:54.6]} 16. Bg5 {[%clk 0:01:58.3]} 16... Rf7 {[%clk 0:00:37.6]}
17. f3 {[%clk 0:01:58.6]} 17... fxe4 {[%clk 0:00:29.6]} 18. fxe4 {[%clk
0:01:59.5]} 18... Ng8 {[%clk 0:00:26.4]} 19. Rf1 {[%clk 0:01:43.6]} 19... h6
{[%clk 0:00:25.9]} 20. Rxf7 {[%clk 0:01:41.2]} 20... Qxf7 {[%clk 0:00:23.5]} 21.
Rf1 {[%clk 0:01:42.1]} 21... Qe8 {[%clk 0:00:21.8]} 22. Be3 {[%clk 0:01:39.4]}
22... Kh7 {[%clk 0:00:20.5]} 23. Nc5 {[%clk 0:01:33.9]} 23... Qe7 {[%clk
0:00:19.8]} 24. Qxe7 {[%clk 0:01:28.9]} 24... Nxe7 {[%clk 0:00:20.7]} 25. Rf7
{[%clk 0:01:28.7]} 25... Kg8 {[%clk 0:00:12.6]} 26. Rxe7 {[%clk 0:01:27]} 26...
Kf8 {[%clk 0:00:13.1]} 27. Rxg7 {[%clk 0:01:23]} 27... Kxg7 {[%clk 0:00:14]} 28.
e5 {[%clk 0:01:17.1]} 28... Rb8 {[%clk 0:00:12]} 29. b3 {[%clk 0:01:17]} 29...
h5 {[%clk 0:00:12.1]} 30. Kf2 {[%clk 0:01:16.7]} 30... a5 {[%clk 0:00:11.8]} 31.
a4 {[%clk 0:01:16.8]} 31... Kf7 {[%clk 0:00:10.5]} 32. Ke2 {[%clk 0:01:16.6]}
32... Ke7 {[%clk 0:00:10.9]} 33. Bd2 {[%clk 0:01:10.4]} 33... d5 {[%clk
0:00:09.6]} 34. exd6+ {[%clk 0:01:08.2]} 34... Kxd6 {[%clk 0:00:09.7]} 35. Nd3
{[%clk 0:01:02.1]} 35... Ra8 {[%clk 0:00:06.3]} 36. Bf4+ {[%clk 0:01:01.3]}
36... Ke7 {[%clk 0:00:03.4]} 37. Nc5 {[%clk 0:01:02]} 37... Ra7 {[%clk
0:00:01.6]} 38. Be5 {[%clk 0:01:00.7]} 38... Bd7 {[%clk 0:00:02.1]} 39. Ke3
{[%clk 0:00:59.6]} 39... Be8 {[%clk 0:00:02.5]} 40. Bxe6 {[%clk 0:00:58]} 1-0

[Event "Late-Titled-Tuesday-Blitz-October-17-2023"]
[Site "Chess.com"]
[Date "2023.10.17"]
[Round "2"]
[White "Arash_Tahbaz"]
[Black "luizzy"]
[Result "1-0"]
[WhiteElo "2909"]
[BlackElo "2573"]
[TimeControl "180+1"]
[EndTime "14:17:15 PDT"]
[Termination "Arash_Tahbaz won on time"]

1. Nf3 {[%clk 0:03:00.9]} 1... d5 {[%clk 0:02:55.7]} 2. g3 {[%clk 0:02:59.9]}
2... Bg4 {[%clk 0:02:56]} 3. Bg2 {[%clk 0:03:00.2]} 3... Nd7 {[%clk 0:02:56.4]}
4. O-O {[%clk 0:03:00.1]} 4... c6 {[%clk 0:02:54.7]} 5. d4 {[%clk 0:02:58.9]}
5... Ngf6 {[%clk 0:02:54.7]} 6. c4 {[%clk 0:02:56]} 6... dxc4 {[%clk 0:02:42.6]}
7. Qc2 {[%clk 0:02:46]} 7... e6 {[%clk 0:02:22]} 8. Rd1 {[%clk 0:02:24.5]} 8...
Be7 {[%clk 0:02:12.6]} 9. Qxc4 {[%clk 0:02:09]} 9... O-O {[%clk 0:02:12]} 10.
Qc2 {[%clk 0:02:03.7]} 10... Qa5 {[%clk 0:01:59.2]} 11. Nc3 {[%clk 0:01:43.9]}
11... Rad8 {[%clk 0:01:38.4]} 12. h3 {[%clk 0:01:42.1]} 12... Bh5 {[%clk
0:01:28.3]} 13. a3 {[%clk 0:01:03.6]} 13... e5 {[%clk 0:01:26.1]} 14. Be3 {[%clk
0:00:47]} 14... exd4 {[%clk 0:01:14.6]} 15. Nxd4 {[%clk 0:00:47.9]} 15... Bg6
{[%clk 0:01:02.1]} 16. Qb3 {[%clk 0:00:47.9]} 16... Nc5 {[%clk 0:01:01.5]} 17.
Qc4 {[%clk 0:00:48.2]} 17... b5 {[%clk 0:00:59]} 18. Nxc6 {[%clk 0:00:38.8]}
18... bxc4 {[%clk 0:00:25.7]} 19. Nxa5 {[%clk 0:00:37.3]} 19... Nb3 {[%clk
0:00:26]} 20. Nxb3 {[%clk 0:00:27.9]} 20... cxb3 {[%clk 0:00:26.9]} 21. Bxa7
{[%clk 0:00:28.5]} 21... Bc2 {[%clk 0:00:21.7]} 22. Rxd8 {[%clk 0:00:27.8]}
22... Rxd8 {[%clk 0:00:22.6]} 23. a4 {[%clk 0:00:28.3]} 23... Bb4 {[%clk
0:00:19.6]} 24. Nb5 {[%clk 0:00:28.8]} 24... Ne4 {[%clk 0:00:09]} 25. Bb6 {[%clk
0:00:20.1]} 25... Rb8 {[%clk 0:00:06.7]} 26. a5 {[%clk 0:00:19.8]} 26... Nc5
{[%clk 0:00:02.9]} 27. a6 {[%clk 0:00:16.8]} 1-0